Workbook

Sheet Home
B10: Project | F10: 1224 Hospital Avenue, Danbury, CT
B11: Sample Site | F11: Version 1.0 / Facility #1 / Suppy Air System
B12: Company Name | F12: XYZ Mechanical Contractor
B13: Company Address | F13: 33 Turner Road, Danbury, CT 06810
B14: Phone / Email | F14: 203-749-3158, your.name@XYZ.Contracting.com
J16: Value | N16: Unit
B17: Belimo Actuator | I17: =MATCH(Actuator,datasheet!A:A,0) -> 4 | J17: AFB24-SR
B18: Belimo Actuator Power Consumption (Running) | I18: =IFERROR(INDEX(datasheet!B:B,ActuatorRow),"") -> 5.5 W | J18: =IFERROR(LEFT(I18,FIND(" ",I18)-1)+0,I18) -> 5.5 | N18: =IFERROR(MID(I18,FIND(" ",I18)+1,100),I18) -> W
B19: Belimo Actuator Power Consumption (Holding) | I19: =IFERROR(INDEX(datasheet!C:C,ActuatorRow),"") -> 3 W | J19: 3 | N19: =IFERROR(MID(I19,FIND(" ",I19)+1,100),I19) -> W
B20: Operating Hours / Day | J20: 18 | N20: hours
B21: Operating Days / Week | J21: 7 | N21: days
B22: Percentage of Time (Running) | J22: 30 | N22: %
B23: Percentage of Time (Holding) | J23: =100-J22 -> 70 | N23: %
B24: Number of Actuators on Jobsite | J24: 110 | N24: #
B25: State | J25: Connecticut
B26: Job Site | J26: Commercial
B27: Electricity Cost (Average) | J27: =IFERROR(INDEX(Energy!$E$10:$G$61,MATCH(J25,ListStates,0),MATCH(J26,Energy!E8:G8,0)),"") -> 14.92 | N27: ¢/kWh
B28: Competitor 1 Actuator Power Consumption (Running) | I28: =IFERROR(INDEX(datasheet!G:G,ActuatorRow),"") -> 9.6 W | J28: =IFERROR(LEFT(I28,FIND(" ",I28)-1)+0,I28) -> 9.6 | N28: =IFERROR(MID(I28,FIND(" ",I28)+1,100),I28) -> W
B29: Competitor 1 Actuator Power Consumption (Holding) | I29: =IFERROR(INDEX(datasheet!H:H,ActuatorRow),"") -> 3 W | J29: =IFERROR(LEFT(I29,FIND(" ",I29)-1)+0,I29) -> 3 | N29: W
B30: Competitor 2 Actuator Power Consumption (Running) | I30: =IFERROR(INDEX(datasheet!L:L,ActuatorRow),"") -> 7 W | J30: 7 | N30: W
B31: Competitor 2 Actuator Power Consumption (Holding) | I31: =IFERROR(INDEX(datasheet!M:M,ActuatorRow),"") -> 5 W | J31: 5 | N31: W
B32: Competitor 3 Actuator Power Consumption (Running) | I32: =IFERROR(INDEX(datasheet!Q:Q,ActuatorRow),"") -> 9.3 W | J32: 9.3 | N32: W
B33: Competitor 3 Actuator Power Consumption (Holding) | I33: =IFERROR(INDEX(datasheet!R:R,ActuatorRow),"") -> 4.62 W | J33: 4.62 | N33: W
H35: Single Actuator | L35: Job Site
B36: Brand | D36: Part Number | F36: Rated Torque | H36: Cons. kWh | J36: Cost | L36: Cons. kWh | N36: Cost
B37: Belimo | D37: =Actuator -> AFB24-SR | F37: =IFERROR(INDEX(datasheet!D:D,ActuatorRow),"") -> 180 in-lb | H37: =IFERROR((J18*$J$22+J19*$J$23)/100*$J$20*$J$21*52/1000,0) -> 24.57 | J37: =IFERROR(H37*$J$27/100,0) -> 3.665844 | L37: =IFERROR(H37*$J$24,0) -> 2702.7 | N37: =IFERROR(J37*$J$24,0) -> 403.24284
B38: Competitor 1 | D38: =IFERROR(INDEX(datasheet!F:F,ActuatorRow),"") -> MS7** | F38: =IFERROR(INDEX(datasheet!I:I,ActuatorRow),"") -> 175 in-lb | H38: =IFERROR((J28*$J$22+J29*$J$23)/100*$J$20*$J$21*52/1000,0) -> 32.62896 | J38: =IFERROR(H38*$J$27/100,0) -> 4.868240832 | L38: =IFERROR(H38*$J$24,0) -> 3589.1856 | N38: =IFERROR(J38*$J$24,0) -> 535.5064915
B39: Competitor 2 | D39: =IFERROR(INDEX(datasheet!K:K,ActuatorRow),"") -> GCA** | F39: =IFERROR(INDEX(datasheet!N:N,ActuatorRow),"") -> 160 in-lb | H39: =IFERROR((J30*$J$22+J31*$J$23)/100*$J$20*$J$21*52/1000,0) -> 36.6912 | J39: 5.47432704 | L39: 4036.032 | N39: 602.1759744
B40: Competitor 3 | D40: =IFERROR(INDEX(datasheet!P:P,ActuatorRow),"") -> M92** | F40: =IFERROR(INDEX(datasheet!S:S,ActuatorRow),"") -> 177 in-lb | H40: =IFERROR((J32*$J$22+J33*$J$23)/100*$J$20*$J$21*52/1000,0) -> 39.469248 | J40: 5.888811802 | L40: 4341.61728 | N40: 647.7692982
E42: Annual Energy Savings | I42: Annual Cost Savings (Cash Flow)
B43: Competitor 1 | D43: =IF(L38=0,"",L38-L37) -> 886.4856 | F43: kWh | H43: =IF(N38=0,"",N38-N37) -> 132.2636515 | J43: $
B44: Competitor 2 | D44: =IF(L39=0,"",L39-L37) -> 1333.332 | F44: kWh | H44: =IF(N39=0,"",N39-N37) -> 198.9331344 | J44: $
B45: Competitor 3 | D45: =IF(L40=0,"",L40-L37) -> 1638.91728 | F45: kWh | H45: =IF(N40=0,"",N40-N37) -> 244.5264582 | J45: $
L47: Value | N47: Unit
B48: Incremental Investment For Belimo Actuators | L48: 230 | N48: $
B49: Discount Rate (Interest Rate On Invested Capital) | L49: 10 | N49: %
B50: Annual Inflation Rate On Electricity Costs | L50: 2 | N50: %
B52: Investment Horizon | H52: 5 years | J52: 10 years | L52: 15 years | N52: 20 years
B53: Accounting Rate Of Return | H53: =-(SUM(Financials!$C$31:G31)/5/SUM(Financials!$B$23:G23)) -> 0.598526395 | J53: =-(SUM(Financials!$C$31:L31)/10/SUM(Financials!$B$23:L23)) -> 0.6296739489 | L53: =-(SUM(Financials!$C$31:Q31)/15/SUM(Financials!$B$23:Q23)) -> 0.6629827445 | N53: =-(SUM(Financials!$C$31:V31)/20/SUM(Financials!$B$23:V23)) -> 0.6986214896
B54: Net Present Value (NPV) | H54: =+Financials!$G$40 -> 289.8832575 | J54: =+Financials!$L$40 -> 646.2878278 | L54: =+Financials!$Q$40 -> 890.6200234 | N54: =+Financials!$V$40 -> 1058.121304
L56: Value | N56: Unit
B57: Annual Carbon Dioxide Avoided | L57: =D43*0.000703*2204.62 -> 1373.91781 | N57: pounds
B58: Pounds of Coal Saved | L58: =D43*0.000703*2204.62/2.06573 -> 665.100381 | N58: pounds
B59: Equivalent Energy Savings in Switching to LED Bulbs for One Year | L59: =D43/37.2 -> 23.83025806 | N59: bulbs
B61: Copyright by BELIMO Aircontrols (USA), Inc., Danbury, CT, 2016. This is an estimating tool. Results are dependent on the accuracy of input values and specific plant details. For more accurate results, additional plant data and complex modeling software is necessary. Power Consumption figures determined from published data, subject to change.
B65: V.2016

Sheet Energy
B5: Operating Hours / Day | D5: =Home!J20 -> 18 | E5: hours | G5: Editable Field
B6: Operating Days / Week | D6: =Home!J21 -> 7 | E6: days | G6: Label
B7: Annual Operating Hours | D7: =(D5*D6)/7*365 -> 6570
E8: Residential | F8: Commercial | G8: Industrial
B9: Census Divisions and States
B10: Alabama | E10: 11.9 | F10: 10.98 | G10: 6.82
B11: Alaska | E11: 21.27 | F11: 18.66 | G11: 15.48
B12: Arizona | E12: 12.83 | F12: 11.48 | G12: 6.97
B13: Arkansas | E13: 10.38 | F13: 8.6 | G13: 6.81
B14: California | E14: 18 | F14: 18.31 | G14: 13.3
B15: Colorado | E15: 12.6 | F15: 10.26 | G15: 7.42
B16: Connecticut | E16: 20.4 | F16: 14.92 | G16: 12.19
B17: Delaware | E17: 13.23 | F17: 10.07 | G17: 7.62
B18: District of Columbia | E18: 13.47 | F18: 11.85 | G18: 8.83
B19: Florida | E19: 11.94 | F19: 9.56 | G19: 8.58
B20: Georgia | E20: 13.28 | F20: 11.31 | G20: 7.94
B21: Hawaii | E21: 30.04 | F21: 27.3 | G21: 23.46
B22: Idaho | E22: 10.67 | F22: 8.08 | G22: 7.17
B23: Illinois | E23: 12.56 | F23: 9 | G23: 6.44
B24: Indiana | E24: 11.15 | F24: 9.5 | G24: 6.72
B25: Iowa | E25: 13.57 | F25: 10.61 | G25: 7.29
B26: Kansas | E26: 12.33 | F26: 10.22 | G26: 7.65
B27: Kentucky | E27: 9.96 | F27: 9.14 | G27: 5.68
B28: Lousiana | E28: 9.24 | F28: 8.34 | G28: 5.2
B29: Maine | E29: 15.42 | F29: 12.32 | G29: 7.5
B30: Maryland | E30: 13.92 | F30: 10.92 | G30: 7.91
B31: Massachusetts | E31: 17.87 | F31: 14.5 | G31: 12.87
B32: Michigan | E32: 15.3 | F32: 11.22 | G32: 8.06
B33: Minnesota | E33: 13.07 | F33: 10.16 | G33: 7.69
B34: Mississippi | E34: 11.16 | F34: 10.37 | G34: 7.1
B35: Missouri | E35: 12.59 | F35: 10.43 | G35: 7.51
B36: Montana | E36: 11.42 | F36: 10.16 | G36: 5.85
B37: Nebraska | E37: 12.2 | F37: 9.66 | G37: 8.34
B38: Nevada | E38: 12.01 | F38: 8.8 | G38: 9.28
B39: New Hampshire | E39: 17.76 | F39: 14.2 | G39: 11.74
B40: New Jersey | E40: 16.74 | F40: 13.89 | G40: 11.38
B41: New Mexico | E41: 13.32 | F41: 11.3 | G41: 6.62
B42: New York | E42: 18.76 | F42: 16.15 | G42: 6.15
B43: North Carolina | E43: 11.47 | F43: 8.95 | G43: 7.05
B44: North Dakota | E44: 11.16 | F44: 9.27 | G44: 8.4
B45: Ohio | E45: 13.28 | F45: 10.14 | G45: 7.29
B46: Oklahoma | E46: 9.98 | F46: 8.14 | G46: 5.72
B47: Oregon | E47: 11.06 | F47: 8.94 | G47: 6.41
B48: Pennsylvania | E48: 14.21 | F48: 9.41 | G48: 7.15
B49: Rhode Island | E49: 17.59 | F49: 14 | G49: 11.96
B50: South Carolina | E50: 12.49 | F50: 10.18 | G50: 6.29
B51: South Dakota | E51: 11.76 | F51: 9.3 | G51: 7.56
B52: Tennessee | E52: 10.32 | F52: 10.25 | G52: 7.31
B53: Texas | E53: 11.58 | F53: 7.73 | G53: 5.65
B54: Utah | E54: 11.94 | F54: 9.11 | G54: 7.02
B55: Vermont | E55: 17.07 | F55: 14.41 | G55: 10.25
B56: Virginia | E56: 11.66 | F56: 8.19 | G56: 7
B57: Washington | E57: 9.34 | F57: 8.16 | G57: 4.61
B58: West Virginia | E58: 10.71 | F58: 8.67 | G58: 6.18
B59: Wisconsin | E59: 14.62 | F59: 11.29 | G59: 8.18
B60: Wyoming | E60: 11.62 | F60: 9.25 | G60: 6.7
B61: Custom Location
B62: U.S. Total | E62: 12.98 | F62: 11.06 | G62: 7.3

Sheet Financials
A9: Discount Rate: | B9: =Home!L49/100 -> 0.1
A10: Finance Rate: | B10: 0.1
A11: Reinvestment Rate: | B11: 0.1
A12: Inflation Rate | B12: =Home!L50/100 -> 0.02
B14: Today | C14: End of Year 1 | D14: End of Year 2 | E14: End of Year 3 | F14: End of Year 4 | G14: End of Year 5 | H14: End of Year 6 | I14: End of Year 7 | J14: End of Year 8 | K14: End of Year 9 | L14: End of Year 10 | M14: End of Year 11 | N14: End of Year 12 | O14: End of Year 13 | P14: End of Year 14 | Q14: End of Year 15 | R14: End of Year 16 | S14: End of Year 17 | T14: End of Year 18 | U14: End of Year 19 | V14: End of Year 20
A15: Date: | B15: 0 | C15: 1 | D15: 2 | E15: 3 | F15: 4 | G15: 5 | H15: 6 | I15: 7 | J15: 8 | K15: 9 | L15: 10 | M15: 11 | N15: 12 | O15: 13 | P15: 14 | Q15: 15 | R15: 16 | S15: 17 | T15: 18 | U15: 19 | V15: 20
A18: Single Investment | B18: =Home!L48*-1 -> -230 | C18: 0 | D18: 0 | E18: 0 | F18: 0 | G18: 0 | H18: 0 | I18: 0 | J18: 0 | K18: 0 | L18: 0 | M18: 0 | N18: 0 | O18: 0 | P18: 0 | Q18: 0 | R18: 0 | S18: 0 | T18: 0 | U18: 0 | V18: 0
A19: Phased Investment | B19: 0 | C19: 0 | D19: 0 | E19: 0 | F19: 0 | G19: 0 | H19: 0 | I19: 0 | J19: 0 | K19: 0 | L19: 0 | M19: 0 | N19: 0 | O19: 0 | P19: 0 | Q19: 0 | R19: 0 | S19: 0 | T19: 0 | U19: 0 | V19: 0
A20: Financed Investment | B20: 0 | C20: 0 | D20: 0 | E20: 0 | F20: 0 | G20: 0 | H20: 0 | I20: 0 | J20: 0 | K20: 0 | L20: 0 | M20: 0 | N20: 0 | O20: 0 | P20: 0 | Q20: 0 | R20: 0 | S20: 0 | T20: 0 | U20: 0 | V20: 0
A21: Subtotal | B21: =SUM(B18:B20) -> -230 | C21: =SUM(C18:C20) -> 0 | D21: 0 | E21: 0 | F21: 0 | G21: 0 | H21: =SUM(H18:H20) -> 0 | I21: =SUM(I18:I20) -> 0 | J21: =SUM(J18:J20) -> 0 | K21: =SUM(K18:K20) -> 0 | L21: =SUM(L18:L20) -> 0 | M21: =SUM(M18:M20) -> 0 | N21: 0 | O21: 0 | P21: 0 | Q21: 0 | R21: 0 | S21: 0 | T21: 0 | U21: 0 | V21: 0
A22: Rebate/Incentive Rec'd at Date | B22: 0
A23: Subtotal Outflows | B23: =SUM(B21:B22) -> -230 | C23: =SUM(C21:C22) -> 0 | D23: 0 | E23: 0 | F23: 0 | G23: 0 | H23: 0 | I23: 0 | J23: 0 | K23: 0 | L23: 0 | M23: =SUM(M21:M22) -> 0 | N23: 0 | O23: 0 | P23: 0 | Q23: 0 | R23: 0 | S23: 0 | T23: 0 | U23: 0 | V23: 0
A26: Energy savings | C26: =Home!H43 -> 132.2636515 | D26: =C26*(1+$B$12) -> 134.9089246 | E26: 137.607103 | F26: 140.3592451 | G26: 143.16643 | H26: 146.0297586 | I26: 148.9503538 | J26: 151.9293609 | K26: 154.9679481 | L26: 158.067307 | M26: =L26*(1+$B$12) -> 161.2286532 | N26: 164.4532262 | O26: 167.7422908 | P26: 171.0971366 | Q26: 174.5190793 | R26: 178.0094609 | S26: 181.5696501 | T26: 185.2010431 | U26: 188.905064 | V26: 192.6831653
A27: Maintenance savings | C27: 0 | D27: =C27*(1+$B$12) -> 0 | E27: 0 | F27: 0 | G27: 0 | H27: 0 | I27: 0 | J27: 0 | K27: 0 | L27: 0 | M27: =L27*(1+$B$12) -> 0 | N27: 0 | O27: 0 | P27: 0 | Q27: 0 | R27: 0 | S27: 0 | T27: 0 | U27: 0 | V27: 0
A28: Rebates/incentives rec'd after Date | C28: 0 | D28: 0 | E28: 0 | F28: 0 | G28: 0 | H28: 0 | I28: 0 | J28: 0 | K28: 0 | L28: 0 | M28: 0 | N28: 0 | O28: 0 | P28: 0 | Q28: 0 | R28: 0 | S28: 0 | T28: 0 | U28: 0 | V28: 0
A29: Subtotal Inflows | C29: =SUM(C26:C28) -> 132.2636515 | D29: =SUM(D26:D28) -> 134.9089246 | E29: 137.607103 | F29: 140.3592451 | G29: 143.16643 | H29: 146.0297586 | I29: 148.9503538 | J29: 151.9293609 | K29: 154.9679481 | L29: =SUM(L26:L28) -> 158.067307 | M29: =SUM(M26:M28) -> 161.2286532 | N29: 164.4532262 | O29: 167.7422908 | P29: 171.0971366 | Q29: 174.5190793 | R29: 178.0094609 | S29: 181.5696501 | T29: 185.2010431 | U29: 188.905064 | V29: 192.6831653
A31: Annual Cash Flow | B31: =B23+B29 -> -230 | C31: =C23+C29 -> 132.2636515 | D31: =D23+D29 -> 134.9089246 | E31: 137.607103 | F31: 140.3592451 | G31: 143.16643 | H31: 146.0297586 | I31: 148.9503538 | J31: 151.9293609 | K31: 154.9679481 | L31: 158.067307 | M31: =M23+M29 -> 161.2286532 | N31: 164.4532262 | O31: 167.7422908 | P31: 171.0971366 | Q31: 174.5190793 | R31: 178.0094609 | S31: 181.5696501 | T31: 185.2010431 | U31: 188.905064 | V31: 192.6831653
A33: PV of Outflows (for SIR calculation) | B33: =SUM(B23)/(1+$B$9)^B$15 -> -230 | C33: 0 | D33: 0 | E33: 0 | F33: 0 | G33: 0 | H33: 0 | I33: 0 | J33: 0 | K33: 0 | L33: 0 | M33: =SUM(M23)/(1+$B$9)^M$15 -> 0 | N33: 0 | O33: 0 | P33: 0 | Q33: 0 | R33: 0 | S33: 0 | T33: 0 | U33: 0 | V33: 0
A34: PV of Inflows (for SIR calculation) | B34: =B29/(1+$B$9)^B$15 -> 0 | C34: 120.2396832 | D34: 111.494979 | E34: 103.3862532 | F34: 95.86725299 | G34: 88.89508914 | H34: 82.42999174 | I34: 76.43508325 | J34: 70.87616811 | K34: 65.7215377 | L34: 60.9417895 | M34: =M29/(1+$B$9)^M$15 -> 56.50965936 | N34: 52.39986595 | O34: 48.58896661 | P34: 45.05522358 | Q34: 41.77848005 | R34: 38.74004514 | S34: 35.92258731 | T34: 33.3100355 | U34: 30.88748747 | V34: 28.64112474
A35: Cumulative Cash Flows | B35: =B31 -> -230 | C35: =B35+C31 -> -97.73634848 | D35: =C35+D31 -> 37.17257607 | E35: 174.7796791 | F35: 315.1389242 | G35: 458.3053542 | H35: 604.3351128 | I35: 753.2854666 | J35: 905.2148275 | K35: 1060.182776 | L35: 1218.250083 | M35: =L35+M31 -> 1379.478736 | N35: =M35+N31 -> 1543.931962 | O35: =N35+O31 -> 1711.674253 | P35: =O35+P31 -> 1882.771389 | Q35: =P35+Q31 -> 2057.290469 | R35: =Q35+R31 -> 2235.299929 | S35: =R35+S31 -> 2416.86958 | T35: =S35+T31 -> 2602.070623 | U35: =T35+U31 -> 2790.975687 | V35: =U35+V31 -> 2983.658852
A36: Annual Present Value | B36: =B31/(1+$B$9)^B15 -> -230 | C36: 120.2396832 | D36: 111.494979 | E36: 103.3862532 | F36: 95.86725299 | G36: 88.89508914 | H36: 82.42999174 | I36: 76.43508325 | J36: 70.87616811 | K36: 65.7215377 | L36: 60.9417895 | M36: =M31/(1+$B$9)^M15 -> 56.50965936 | N36: 52.39986595 | O36: 48.58896661 | P36: 45.05522358 | Q36: 41.77848005 | R36: 38.74004514 | S36: 35.92258731 | T36: 33.3100355 | U36: 30.88748747 | V36: 28.64112474
A37: Cumulative Present Value | B37: =B36 -> -230 | C37: =B37+C36 -> -109.7603168 | D37: =C37+D36 -> 1.734662167 | E37: 105.1209154 | F37: 200.9881684 | G37: 289.8832575 | H37: 372.3132493 | I37: 448.7483325 | J37: 519.6245006 | K37: 585.3460383 | L37: 646.2878278 | M37: =L37+M36 -> 702.7974872 | N37: =M37+N36 -> 755.1973531 | O37: =N37+O36 -> 803.7863197 | P37: =O37+P36 -> 848.8415433 | Q37: =P37+Q36 -> 890.6200234 | R37: =Q37+R36 -> 929.3600685 | S37: =R37+S36 -> 965.2826558 | T37: =S37+T36 -> 998.5926913 | U37: =T37+U36 -> 1029.480179 | V37: =U37+V36 -> 1058.121304
C38: *Note: Certain Returns Vary Depending on the Length of the Analysis Term*
B39: 10 Year | C39: 1 Year | D39: 2 Year | E39: 3 Year | F39: 4 Year | G39: 5 Year | H39: 6 Year | I39: 7 Year | J39: 8 Year | K39: 9 Year | L39: 10 Year | M39: 11 Year | N39: 12 Year | O39: 13 Year | P39: 14 Year | Q39: 15 Year | R39: 16 Year | S39: 17 Year | T39: 18 Year | U39: 19 Year | V39: 20 Year
A40: Net Present Value (NPV) | B40: =SUM(B36:L36) -> 646.2878278 | C40: =$B$36+SUM($C$36:C36) -> -109.7603168 | D40: =$B$36+SUM($C$36:D36) -> 1.734662167 | E40: =$B$36+SUM($C$36:E36) -> 105.1209154 | F40: =$B$36+SUM($C$36:F36) -> 200.9881684 | G40: =$B$36+SUM($C$36:G36) -> 289.8832575 | H40: =$B$36+SUM($C$36:H36) -> 372.3132493 | I40: =$B$36+SUM($C$36:I36) -> 448.7483325 | J40: =$B$36+SUM($C$36:J36) -> 519.6245006 | K40: =$B$36+SUM($C$36:K36) -> 585.3460383 | L40: =$B$36+SUM($C$36:L36) -> 646.2878278 | M40: =$B$36+SUM($C$36:M36) -> 702.7974872 | N40: =$B$36+SUM($C$36:N36) -> 755.1973531 | O40: =$B$36+SUM($C$36:O36) -> 803.7863197 | P40: =$B$36+SUM($C$36:P36) -> 848.8415433 | Q40: =$B$36+SUM($C$36:Q36) -> 890.6200234 | R40: =$B$36+SUM($C$36:R36) -> 929.3600685 | S40: =$B$36+SUM($C$36:S36) -> 965.2826558 | T40: =$B$36+SUM($C$36:T36) -> 998.5926913 | U40: =$B$36+SUM($C$36:U36) -> 1029.480179 | V40: =$B$36+SUM($C$36:V36) -> 1058.121304
A41: Simple Payback Period (SPP) | B41: =-B31/C31 -> 1.738950931
A42: Return on Investment (ROI) | B42: =-C31/B31 -> 0.5750593544
A43: Internal Rate of Return (IRR) | B43: =IRR($B$31:$L$31,0.1) -> 0.588193737 | C43: =IRR($B$31:$C$31,0.1) -> -0.4249406456 | D43: =IRR($B$31:$D$31,0.1) -> 0.1055968241 | E43: =IRR($B$31:$E$31,0.1) -> 0.3432887069 | F43: =IRR($B$31:$F$31,0.1) -> 0.4568927774 | G43: =IRR($B$31:$G$31,0.1) -> 0.515687832 | H43: =IRR($B$31:$H$31,0.1) -> 0.5479944333 | I43: =IRR($B$31:$I$31,0.1) -> 0.5665261663 | J43: =IRR($B$31:$J$31,0.1) -> 0.5774888753 | K43: =IRR($B$31:$K$31,0.1) -> 0.5841191988 | L43: =IRR($B$31:$L$31,0.1) -> 0.588193737 | M43: =IRR($B$31:$I$31,0.1) -> 0.5665261663 | N43: =IRR($B$31:$J$31,0.1) -> 0.5774888753 | O43: =IRR($B$31:$K$31,0.1) -> 0.5841191988 | P43: =IRR($B$31:$L$31,0.1) -> 0.588193737 | Q43: =IRR($B$31:$I$31,0.1) -> 0.5665261663 | R43: =IRR($B$31:$J$31,0.1) -> 0.5774888753 | S43: =IRR($B$31:$K$31,0.1) -> 0.5841191988 | T43: =IRR($B$31:$L$31,0.1) -> 0.588193737 | U43: =IRR($B$31:$I$31,0.1) -> 0.5665261663 | V43: =IRR($B$31:$J$31,0.1) -> 0.5774888753
A44: Modified Internal Rate of Return (MIRR) | B44: =MIRR($B$31:$L$31,$B$10,$B$11) -> 0.2574322058 | C44: =MIRR($B$31:$C$31,$B$10,$B$11) -> -0.4249406456 | D44: =MIRR($B$31:$D$31,$B$10,$B$11) -> 0.1041403133 | E44: =MIRR($B$31:$E$31,$B$10,$B$11) -> 0.2470501464 | F44: =MIRR($B$31:$F$31,$B$10,$B$11) -> 0.286995603 | G44: =MIRR($B$31:$G$31,$B$10,$B$11) -> 0.2948763065 | H44: =MIRR($B$31:$H$31,$B$10,$B$11) -> 0.2914426213 | I44: =MIRR($B$31:$I$31,$B$10,$B$11) -> 0.2839047908 | J44: =MIRR($B$31:$J$31,$B$10,$B$11) -> 0.275064567 | K44: =MIRR($B$31:$K$31,$B$10,$B$11) -> 0.2660793393 | L44: =MIRR($B$31:$L$31,$B$10,$B$11) -> 0.2574322058 | M44: =MIRR($B$31:$I$31,$B$10,$B$11) -> 0.2839047908 | N44: =MIRR($B$31:$J$31,$B$10,$B$11) -> 0.275064567 | O44: =MIRR($B$31:$K$31,$B$10,$B$11) -> 0.2660793393 | P44: =MIRR($B$31:$L$31,$B$10,$B$11) -> 0.2574322058 | Q44: =MIRR($B$31:$I$31,$B$10,$B$11) -> 0.2839047908 | R44: =MIRR($B$31:$J$31,$B$10,$B$11) -> 0.275064567 | S44: =MIRR($B$31:$K$31,$B$10,$B$11) -> 0.2660793393 | T44: =MIRR($B$31:$L$31,$B$10,$B$11) -> 0.2574322058 | U44: =MIRR($B$31:$I$31,$B$10,$B$11) -> 0.2839047908 | V44: =MIRR($B$31:$J$31,$B$10,$B$11) -> 0.275064567
A45: Savings-Investment Ratio (SIR) | B45: =SUM($B$34:$L$34)/(ABS(SUM(B33:L33))) -> 3.809947078 | C45: =SUM($B34:C34)/ABS(SUM($B33:C33)) -> 0.5227812313 | D45: =SUM($B34:D34)/ABS(SUM($B33:D33)) -> 1.007542009 | E45: =SUM($B34:E34)/ABS(SUM($B33:E33)) -> 1.457047458 | F45: =SUM($B34:F34)/ABS(SUM($B33:F33)) -> 1.873861602 | G45: =SUM($B34:G34)/ABS(SUM($B33:G33)) -> 2.260361989 | H45: =SUM($B34:H34)/ABS(SUM($B33:H33)) -> 2.618753258 | I45: =SUM($B34:I34)/ABS(SUM($B33:I33)) -> 2.951079707 | J45: =SUM($B34:J34)/ABS(SUM($B33:J33)) -> 3.259236959 | K45: =SUM($B34:K34)/ABS(SUM($B33:K33)) -> 3.544982775 | L45: =SUM($B34:L34)/ABS(SUM($B33:L33)) -> 3.809947078 | M45: =SUM($B34:M34)/ABS(SUM($B33:M33)) -> 4.055641249 | N45: =SUM($B34:N34)/ABS(SUM($B33:N33)) -> 4.283466753 | O45: =SUM($B34:O34)/ABS(SUM($B33:O33)) -> 4.494723129 | P45: =SUM($B34:P34)/ABS(SUM($B33:P33)) -> 4.690615406 | Q45: =SUM($B34:Q34)/ABS(SUM($B33:Q33)) -> 4.872260971 | R45: =SUM($B34:R34)/ABS(SUM($B33:R33)) -> 5.04069595 | S45: =SUM($B34:S34)/ABS(SUM($B33:S33)) -> 5.196881112 | T45: =SUM($B34:T34)/ABS(SUM($B33:T33)) -> 5.341707354 | U45: =SUM($B34:U34)/ABS(SUM($B33:U33)) -> 5.476000777 | V45: =SUM($B34:V34)/ABS(SUM($B33:V33)) -> 5.600527407
B46: =+Home!B65 -> V.2016

Sheet datasheet (hidden)
A1: BELIMO | E1: Honeywell | J1: Siemens | O1: Johnson Controls
A2: Actuators | B2: Running | C2: Holding | D2: Torque | E2: Competitor 1 | F2: Part Number | G2: Running | H2: Holding | I2: Torque | J2: Competitor 2 | K2: Part Number | L2: Running | M2: Holding | N2: Torque | O2: Competitor 3 | P2: Part Number | Q2: Running | R2: Holding | S2: Torque
A3: AFB24 | B3: 5 W | C3: 2.5 W | D3: 180 in-lb | E3: MS8120A… | F3: MS8** | G3: 24 W | H3: 4.8 W | I3: 175 in-lb | J3: GCA121.1U | K3: GCA** | L3: 7 W | M3: 5 W | N3: 160 in-lb | O3: M9220-BGA-3 | P3: M92** | Q3: 14.76 W | R3: 4.62 W | S3: 177 in-lb
A4: AFB24-SR | B4: 5.5 W | C4: 3 W | D4: 180 in-lb | E4: MS7120A… | F4: MS7** | G4: 9.6 W | H4: 3 W | I4: 175 in-lb | J4: GCA151.1U | K4: GCA** | L4: 7 W | M4: 5 W | N4: 160 in-lb | O4: M9220-GGA-3 | P4: M92** | Q4: 9.3 W | R4: 4.62 W | S4: 177 in-lb
A5: AFB24-MFT | B5: 7.5 W | C5: 3 W | D5: 180 in-lb | E5: MS7520A… | F5: MS7** | G5: 9.6 W | H5: 3 W | I5: 175 in-lb | J5: GCA163.1U | K5: GCA** | L5: 7 W | M5: 5 W | N5: 160 in-lb | O5: M9220-HGA-3 | P5: M92** | Q5: 9.3 W | R5: 4.62 W | S5: 177 in-lb
A6: AFBUP | B6: 7 W | C6: 3.5 W | D6: 180 in-lb | E6: MS4120A… | F6: MS4** | G6: 36 W | H6: 7.8 W | I6: 175 in-lb | J6: GCA221.1U | K6: GCA** | L6: 8 W | M6: 6 W | N6: 160 in-lb | O6: M9220-BAA-3 | P6: M92** | Q6: 18 W | R6: 9.36 W | S6: 177 in-lb
A7: AHB24-3-100 | B7: 2 W | C7: 0.5 W | D7: 101 lbf | E7: -- | F7: -- | G7: -- | H7: -- | I7: -- | J7: -- | K7: -- | L7: -- | M7: -- | N7: -- | O7: -- | P7: -- | Q7: -- | R7: -- | S7: --
A8: AHB24-3-200 | B8: 2 W | C8: 0.5 W | D8: 101 lbf | E8: -- | F8: -- | G8: -- | H8: -- | I8: -- | J8: -- | K8: -- | L8: -- | M8: -- | N8: -- | O8: -- | P8: -- | Q8: -- | R8: -- | S8: --
A9: AHKX24-MFT-100 | B9: 11 W | C9: 3 W | D9: 101 lbf | E9: -- | F9: -- | G9: -- | H9: -- | I9: -- | J9: -- | K9: -- | L9: -- | M9: -- | N9: -- | O9: -- | P9: -- | Q9: -- | R9: -- | S9: --
A10: AHQB24-1-100 | B10: 13 W | C10: 1.5 W | D10: 44 lbf | E10: -- | F10: -- | G10: -- | H10: -- | I10: -- | J10: -- | K10: -- | L10: -- | M10: -- | N10: -- | O10: -- | P10: -- | Q10: -- | R10: -- | S10: --
A11: AHQB24-MFT-100 | B11: 13 W | C11: 1.5 W | D11: 44 lbf | E11: -- | F11: -- | G11: -- | H11: -- | I11: -- | J11: -- | K11: -- | L11: -- | M11: -- | N11: -- | O11: -- | P11: -- | Q11: -- | R11: -- | S11: --
A12: AHX120-3-300 | B12: 2.5 W | C12: 0.5 W | D12: 101 lbf | E12: -- | F12: -- | G12: -- | H12: -- | I12: -- | J12: -- | K12: -- | L12: -- | M12: -- | N12: -- | O12: -- | P12: -- | Q12: -- | R12: -- | S12: --
A13: AHX24-3-300 | B13: 2 W | C13: 0.5 W | D13: 101 lbf | E13: -- | F13: -- | G13: -- | H13: -- | I13: -- | J13: -- | K13: -- | L13: -- | M13: -- | N13: -- | O13: -- | P13: -- | Q13: -- | R13: -- | S13: --
A14: AHX24-MFT-100 | B14: 3.5 W | C14: 1.3 W | D14: 101 lbf | E14: -- | F14: -- | G14: -- | H14: -- | I14: -- | J14: -- | K14: -- | L14: -- | M14: -- | N14: -- | O14: -- | P14: -- | Q14: -- | R14: -- | S14: --
A15: AHX24-MFT-200 | B15: 3.5 W | C15: 1.3 W | D15: 101 lbf | E15: -- | F15: -- | G15: -- | H15: -- | I15: -- | J15: -- | K15: -- | L15: -- | M15: -- | N15: -- | O15: -- | P15: -- | Q15: -- | R15: -- | S15: --
A16: AHX24-MFT-300 | B16: 3.5 W | C16: 1.3 W | D16: 101 lbf | E16: -- | F16: -- | G16: -- | H16: -- | I16: -- | J16: -- | K16: -- | L16: -- | M16: -- | N16: -- | O16: -- | P16: -- | Q16: -- | R16: -- | S16: --
A17: AMB24-3 | B17: 2.5 W | C17: 0.5 W | D17: 180 in-lb | E17: MN6120A… | F17: MN6** | G17: 6 W | H17: 2 W | I17: 175 in-lb | J17: GBB171.1U | K17: GBB** | L17: 7 W | M17: 1.1 W | N17: 177 in-lb | O17: M9116-AGA-2 | P17: M91** | Q17: 3.48 W | R17: 0.54 W | S17: 140 in-lb
A18: AMB24-SR | B18: 2.5 W | C18: 0.4 W | D18: 180 in-lb | E18: MN7220A | F18: MN7** | G18: 6 W | H18: 2 W | I18: 175 in-lb | J18: GBB166.1U | K18: GBB** | L18: 8 W | M18: 1.1 W | N18: 177 in-lb | O18: M9116-GGC-2 | P18: M91** | Q18: 3.84 W | R18: 0.9 W | S18: 140 in-lb
A19: AMB24-MFT | B19: 3.5 W | C19: 1.3 W | D19: 180 in-lb | E19: M6184D… | F19: M61** | G19: 9 W | H19: 2 W | I19: 150 in-lb | J19: GBB163.1U | K19: GBB** | L19: 8 W | M19: 1.1 W | N19: 177 in-lb | O19: M9116-GGA-2 | P19: M91** | Q19: 3.84 W | R19: 0.9 W | S19: 140 in-lb
A20: AMCX24-MFT | B20: 4 W | C20: 1.25 W | D20: 180 in-lb | E20: M6184D… | F20: M61** | G20: 9 W | H20: 2 W | I20: -- | J20: -- | K20: -- | L20: -- | M20: -- | N20: 177 in-lb | O20: -- | P20: -- | Q20: -- | R20: -- | S20: --
A21: AMQB24-1 | B21: 15 W | C21: 1.5 W | D21: 140 in-lb | E21: -- | F21: -- | G21: -- | H21: -- | I21: -- | J21: -- | K21: -- | L21: -- | M21: -- | N21: 177 in-lb | O21: -- | P21: -- | Q21: -- | R21: -- | S21: --
A22: AMQB24-MFT | B22: 15 W | C22: 1.5 W | D22: 140 in-lb | E22: -- | F22: -- | G22: -- | H22: -- | I22: -- | J22: -- | K22: -- | L22: -- | M22: -- | N22: 177 in-lb | O22: -- | P22: -- | Q22: -- | R22: -- | S22: --
A23: AMX120-3 | B23: 3 W | C23: 0.6 W | D23: 180 in-lb | E23: -- | F23: -- | G23: -- | H23: -- | I23: -- | J23: -- | K23: -- | L23: -- | M23: -- | N23: -- | O23: -- | P23: -- | Q23: -- | R23: -- | S23: --
A24: CMB120-3 | B24: 1.5 W | C24: 1 W | D24: 18 in-lb | E24: -- | F24: -- | G24: -- | H24: -- | I24: -- | J24: -- | K24: -- | L24: -- | M24: -- | N24: -- | O24: -- | P24: -- | Q24: -- | R24: -- | S24: --
A25: CMB24-3 | B25: 1 W | C25: 0.2 W | D25: 18 in-lb | E25: -- | F25: -- | G25: -- | H25: -- | I25: -- | J25: -- | K25: -- | L25: -- | M25: -- | N25: -- | O25: M9102-AGA-2 | P25: M91** | Q25: 1.26 W | R25: 0 W | S25: 18 in-lb
A26: CMB24-SR-R | B26: 1.5 W | C26: 0.5 W | D26: 18 in-lb | E26: -- | F26: -- | G26: -- | H26: -- | I26: -- | J26: -- | K26: -- | L26: -- | M26: -- | N26: -- | O26: M9102-GGA-2 | P26: M91** | Q26: 2.16 W | R26: 0.6 W | S26: 18 in-lb
A27: EFB120 | B27: 9.5 W | C27: 4.5 W | D27: 270 in-lb | E27: -- | F27: -- | G27: -- | H27: -- | I27: -- | J27: -- | K27: -- | L27: -- | M27: -- | N27: -- | O27: -- | P27: -- | Q27: -- | R27: -- | S27: --
A28: EFB24 | B28: 9.5 W | C28: 4.5 W | D28: 270 in-lb | E28: -- | F28: -- | G28: -- | H28: -- | I28: -- | J28: -- | K28: -- | L28: -- | M28: -- | N28: -- | O28: -- | P28: -- | Q28: -- | R28: -- | S28: --
A29: EFB24-SR | B29: 8 W | C29: 4.5 W | D29: 270 in-lb | E29: -- | F29: -- | G29: -- | H29: -- | I29: -- | J29: -- | K29: -- | L29: -- | M29: -- | N29: -- | O29: -- | P29: -- | Q29: -- | R29: -- | S29: --
A30: EFB24-MFT | B30: 9.5 W | C30: 4.5 W | D30: 270 in-lb | E30: -- | F30: -- | G30: -- | H30: -- | I30: -- | J30: -- | K30: -- | L30: -- | M30: -- | N30: -- | O30: -- | P30: -- | Q30: -- | R30: -- | S30: --
A31: GKB24-3 | B31: 12 W | C31: 3 W | D31: 360 in-lb | E31: -- | F31: -- | G31: -- | H31: -- | I31: -- | J31: -- | K31: -- | L31: -- | M31: -- | N31: -- | O31: -- | P31: -- | Q31: -- | R31: -- | S31: --
A32: GKX24-MFT | B32: 12 W | C32: 3 W | D32: 360 in-lb | E32: -- | F32: -- | G32: -- | H32: -- | I32: -- | J32: -- | K32: -- | L32: -- | M32: -- | N32: -- | O32: -- | P32: -- | Q32: -- | R32: -- | S32: --
A33: GMB24-3 | B33: 4 W | C33: 2 W | D33: 360 in-lb | E33: MN6134A… | F33: MN6** | G33: 9 W | H33: 2 W | I33: 300 in-lb | J33: GIB171.1U | K33: GIB** | L33: 7 W | M33: 1.1 W | N33: 310 in-lb | O33: M9132-AGA-2 | P33: M91** | Q33: 3.9 W | R33: 0.9 W | S33: 280 in-lb
A34: GMB24-SR | B34: 4.5 W | C34: 2 W | D34: 360 in-lb | E34: M7294A | F34: M72** | G34: 9 W | H34: 2 W | I34: 300 in-lb | J34: GIB166.1U | K34: GIB** | L34: 8 W | M34: 1.1 W | N34: 310 in-lb | O34: M9132-GGA-2 | P34: M91** | Q34: 3.9 W | R34: 0.9 W | S34: 280 in-lb
A35: GMB24-MFT | B35: 4.5 W | C35: 1.5 W | D35: 360 in-lb | E35: -- | F35: -- | G35: -- | H35: -- | I35: -- | J35: GIB164.1U | K35: GIB** | L35: 8 W | M35: 1.1 W | N35: 310 in-lb | O35: M9132-HGA-2 | P35: M91** | Q35: 3.9 W | R35: 0.9 W | S35: 280 in-lb
A36: GMX120-3 | B36: 4 W | C36: 2 W | D36: 360 in-lb | E36: -- | F36: -- | G36: -- | H36: -- | I36: -- | J36: -- | K36: -- | L36: -- | M36: -- | N36: -- | O36: -- | P36: -- | Q36: -- | R36: -- | S36: --
A37: LF120 US | B37: 5.5 W | C37: 3.5 W | D37: 35 in-lb | E37: MS4105A | F37: MS4** | G37: 9 W | H37: 4.8 W | I37: 44 in-lb | J37: GMA221.1U | K37: GMA** | L37: 7 W | M37: 4 W | N37: 62 in-lb | O37: M9208-BAA-3 | P37: M92** | Q37: 3.6 W | R37: 2.16 W | S37: 70 in-lb
A38: LF230 US | B38: 5 W | C38: 3 W | D38: 35 in-lb | E38: MS4105A | F38: MS4** | G38: 9 W | H38: 4.8 W | I38: 44 in-lb | J38: GMA221.1U | K38: GMA** | L38: 7 W | M38: 4 W | N38: 62 in-lb | O38: M9208-BDA-3 | P38: M92** | Q38: 5.52 W | R38: 4.14 W | S38: 70 in-lb
A39: LF24 US | B39: 5 W | C39: 2.5 W | D39: 35 in-lb | E39: MS8105A | F39: MS8** | G39: 9 W | H39: 4.8 W | I39: 44 in-lb | J39: GMA121.1U | K39: GMA** | L39: 5 W | M39: 4 W | N39: 62 in-lb | O39: M9208-BGA-3 | P39: M92** | Q39: 3.66 W | R39: 0.72 W | S39: 70 in-lb
A40: LF24-3 US | B40: 2.5 W | C40: 1 W | D40: 35 in-lb | E40: MS7505A | F40: MS7** | G40: 6 W | H40: 3 W | I40: 44 in-lb | J40: GMA131.1U | K40: GMA** | L40: 5 W | M40: 4 W | N40: 62 in-lb | O40: M9208-AGA-2 | P40: M92** | Q40: 4.74 W | R40: 3.3 W | S40: 70 in-lb
A41: LF24-SR US | B41: 2.5 W | C41: 1 W | D41: 35 in-lb | E41: MS7505A | F41: MS7** | G41: 6 W | H41: 3 W | I41: 44 in-lb | J41: GMA151.1U | K41: GMA** | L41: 5 W | M41: 4 W | N41: 62 in-lb | O41: M9208-GGA-2 | P41: M92** | Q41: 4.74 W | R41: 3.3 W | S41: 70 in-lb
A42: LF24-MFT US | B42: 2.5 W | C42: 1 W | D42: 35 in-lb | E42: MS7505A | F42: MS7** | G42: 6 W | H42: 3 W | I42: 44 in-lb | J42: GMA163.1U | K42: GMA** | L42: 5 W | M42: 4 W | N42: 62 in-lb | O42: M9208-GGA-2 | P42: M92** | Q42: 4.74 W | R42: 3.3 W | S42: 70 in-lb
A43: LHB24-3-100 | B43: 1.5 W | C43: 0.5 W | D43: 34 lbf | E43: -- | F43: -- | G43: -- | H43: -- | I43: -- | J43: -- | K43: -- | L43: -- | M43: -- | N43: -- | O43: -- | P43: -- | Q43: -- | R43: -- | S43: --
A44: LHB24-3-200 | B44: 1.5 W | C44: 0.5 W | D44: 34 lbf | E44: -- | F44: -- | G44: -- | H44: -- | I44: -- | J44: -- | K44: -- | L44: -- | M44: -- | N44: -- | O44: -- | P44: -- | Q44: -- | R44: -- | S44: --
A45: LHQB24-1-100 | B45: 12 W | C45: 1.5 W | D45: 22 lbf | E45: -- | F45: -- | G45: -- | H45: -- | I45: -- | J45: -- | K45: -- | L45: -- | M45: -- | N45: -- | O45: -- | P45: -- | Q45: -- | R45: -- | S45: --
A46: LHQB24-MFT-100 | B46: 12 W | C46: 1.5 W | D46: 22 lbf | E46: -- | F46: -- | G46: -- | H46: -- | I46: -- | J46: -- | K46: -- | L46: -- | M46: -- | N46: -- | O46: -- | P46: -- | Q46: -- | R46: -- | S46: --
A47: LHX120-3-100 | B47: 2.5 W | C47: 0.5 W | D47: 34 lbf | E47: -- | F47: -- | G47: -- | H47: -- | I47: -- | J47: -- | K47: -- | L47: -- | M47: -- | N47: -- | O47: -- | P47: -- | Q47: -- | R47: -- | S47: --
A48: LHX120-3-200 | B48: 2.5 W | C48: 0.5 W | D48: 34 lbf | E48: -- | F48: -- | G48: -- | H48: -- | I48: -- | J48: -- | K48: -- | L48: -- | M48: -- | N48: -- | O48: -- | P48: -- | Q48: -- | R48: -- | S48: --
A49: LHX120-3-300 | B49: 2.5 W | C49: 0.5 W | D49: 34 lbf | E49: -- | F49: -- | G49: -- | H49: -- | I49: -- | J49: -- | K49: -- | L49: -- | M49: -- | N49: -- | O49: -- | P49: -- | Q49: -- | R49: -- | S49: --
A50: LHX24-3-300 | B50: 1.5 W | C50: 0.5 W | D50: 34 lbf | E50: -- | F50: -- | G50: -- | H50: -- | I50: -- | J50: -- | K50: -- | L50: -- | M50: -- | N50: -- | O50: -- | P50: -- | Q50: -- | R50: -- | S50: --
A51: LHX24-MFT-100 | B51: 2.5 W | C51: 1.2 W | D51: 34 lbf | E51: -- | F51: -- | G51: -- | H51: -- | I51: -- | J51: -- | K51: -- | L51: -- | M51: -- | N51: -- | O51: -- | P51: -- | Q51: -- | R51: -- | S51: --
A52: LHX24-MFT-200 | B52: 2.5 W | C52: 1.2 W | D52: 34 lbf | E52: -- | F52: -- | G52: -- | H52: -- | I52: -- | J52: -- | K52: -- | L52: -- | M52: -- | N52: -- | O52: -- | P52: -- | Q52: -- | R52: -- | S52: --
A53: LHX24-MFT-300 | B53: 2.5 W | C53: 1.2 W | D53: 34 lbf | E53: -- | F53: -- | G53: -- | H53: -- | I53: -- | J53: -- | K53: -- | L53: -- | M53: -- | N53: -- | O53: -- | P53: -- | Q53: -- | R53: -- | S53: --
A54: LMB24-3 | B54: 1.5 W | C54: 0.2 W | D54: 45 in-lb | E54: ML6161L | F54: ML6** | G54: 1.08 W | H54: 0 W | I54: 35 in-lb | J54: GEB131.1U | K54: GEB** | L54: 2.3 W | M54: 1 W | N54: 44 in-lb | O54: M9106-AGC-2 | P54: M91** | Q54: 1.5 W | R54: 0 W | S54: 53 in-lb
A55: LMB24-SR | B55: 1.5 W | C55: 0.4 W | D55: 45 in-lb | E55: ML7161A | F55: ML7** | G55: 3.24 W | H55: 0 W | I55: 35 in-lb | J55: GDE161.1P | K55: GDE** | L55: 3.3 W | M55: 1 W | N55: 44 in-lb | O55: M9106-GGA-2 | P55: M91** | Q55: 1.92 W | R55: 0.3 W | S55: 53 in-lb
A56: LMB24-MFT | B56: 2.5 W | C56: 1.2 W | D56: 45 in-lb | E56: M9164 | F56: M91** | G56: 6 W | H56: 0 W | I56: 35 in-lb | J56: -- | K56: -- | L56: -- | M56: -- | N56: -- | O56: M9106-IGA-2 | P56: M91** | Q56: 1.68 W | R56: 0.3 W | S56: 53 in-lb
A57: LMCB24-3 | B57: 1.5 W | C57: 0.2 W | D57: 45 in-lb | E57: -- | F57: -- | G57: -- | H57: -- | I57: -- | J57: -- | K57: -- | L57: -- | M57: -- | N57: -- | O57: -- | P57: -- | Q57: -- | R57: -- | S57: --
A58: LMQB24-1 | B58: 13 W | C58: 1.5 W | D58: 35 in-lb | E58: -- | F58: -- | G58: -- | H58: -- | I58: -- | J58: -- | K58: -- | L58: -- | M58: -- | N58: -- | O58: -- | P58: -- | Q58: -- | R58: -- | S58: --
A59: LMQB24-MFT | B59: 13 W | C59: 1.5 W | D59: 35 in-lb | E59: -- | F59: -- | G59: -- | H59: -- | I59: -- | J59: -- | K59: -- | L59: -- | M59: -- | N59: -- | O59: -- | P59: -- | Q59: -- | R59: -- | S59: --
A60: LMX120-3 | B60: 2 W | C60: 0.5 W | D60: 45 in-lb | E60: -- | F60: -- | G60: -- | H60: -- | I60: -- | J60: -- | K60: -- | L60: -- | M60: -- | N60: -- | O60: -- | P60: -- | Q60: -- | R60: -- | S60: --
A61: LMX24-MFT | B61: 2.5 W | C61: 1.2 W | D61: 45 in-lb | E61: -- | F61: -- | G61: -- | H61: -- | I61: -- | J61: -- | K61: -- | L61: -- | M61: -- | N61: -- | O61: -- | P61: -- | Q61: -- | R61: -- | S61: --
A62: LUB24-3 | B62: 1 W | C62: 0.5 W | D62: 27 in-lb | E62: -- | F62: -- | G62: -- | H62: -- | I62: -- | J62: -- | K62: -- | L62: -- | M62: -- | N62: -- | O62: -- | P62: -- | Q62: -- | R62: -- | S62: --
A63: LUX120-3 | B63: 3 W | C63: 1.5 W | D63: 27 in-lb | E63: -- | F63: -- | G63: -- | H63: -- | I63: -- | J63: -- | K63: -- | L63: -- | M63: -- | N63: -- | O63: -- | P63: -- | Q63: -- | R63: -- | S63: --
A64: LUX24-MFT | B64: 2.5 W | C64: 1.2 W | D64: 27 in-lb | E64: -- | F64: -- | G64: -- | H64: -- | I64: -- | J64: -- | K64: -- | L64: -- | M64: -- | N64: -- | O64: -- | P64: -- | Q64: -- | R64: -- | S64: --
A65: NFB24 | B65: 6 W | C65: 2.5 W | D65: 90 in-lb | E65: MS8110A | F65: MS8** | G65: 18 W | H65: 4.8 W | I65: 88 in-lb | J65: GMA121.1U | K65: GMA** | L65: 5 W | M65: 4 W | N65: 62 in-lb | O65: M9210-BGA-3 | P65: M92** | Q65: 10.62 W | R65: 3.06 W | S65: 89 in-lb
A66: NFB24-SR | B66: 3.5 W | C66: 2.5 W | D66: 90 in-lb | E66: MS7510A | F66: MS7** | G66: 8.4 W | H66: 3 W | I66: 88 in-lb | J66: GMA151.1U | K66: GMA** | L66: 5 W | M66: 4 W | N66: 62 in-lb | O66: M9210-CGA-3 | P66: M92** | Q66: 5.76 W | R66: 3.6 W | S66: 89 in-lb
A67: NFB24-MFT | B67: 6.5 W | C67: 3 W | D67: 90 in-lb | E67: MS7510A | F67: MS7** | G67: 8.4 W | H67: 3 W | I67: 88 in-lb | J67: GMA163.1U | K67: GMA** | L67: 5 W | M67: 4 W | N67: 62 in-lb | O67: M9210-HGA-3 | P67: M92** | Q67: 5.76 W | R67: 3.6 W | S67: 89 in-lb
A68: NFBUP | B68: 6 W | C68: 2.5 W | D68: 90 in-lb | E68: MS4110A | F68: MS4** | G68: 27 W | H68: 7.8 W | I68: 88 in-lb | J68: GMA221.1U | K68: GMA** | L68: 7 W | M68: 4 W | N68: 62 in-lb | O68: M9210-BDA-3 | P68: M92** | Q68: 20.7 W | R68: 12.42 W | S68: 89 in-lb
A69: NKQB24-1 | B69: 11 W | C69: 3 W | D69: 54 in-lb | E69: -- | F69: -- | G69: -- | H69: -- | I69: -- | J69: -- | K69: -- | L69: -- | M69: -- | N69: -- | O69: -- | P69: -- | Q69: -- | R69: -- | S69: --
A70: NKQX24-MFT | B70: 11 W | C70: 3 W | D70: 54 in-lb | E70: -- | F70: -- | G70: -- | H70: -- | I70: -- | J70: -- | K70: -- | L70: -- | M70: -- | N70: -- | O70: -- | P70: -- | Q70: -- | R70: -- | S70: --
A71: NMB24-3 | B71: 2 W | C71: 0.2 W | D71: 90 in-lb | E71: ML6174B | F71: ML6** | G71: 1.44 W | H71: 0 W | I71: 90 in-lb | J71: GLB131.1P | K71: GLB** | L71: 2.3 W | M71: 1 W | N71: 88 in-lb | O71: M9109-AGA-2 | P71: M91** | Q71: 1.5 W | R71: 0 W | S71: 80 in-lb
A72: NMB24-SR | B72: 2.5 W | C72: 0.4 W | D72: 90 in-lb | E72: ML7174A | F72: ML7** | G72: 3.24 W | H72: 0 W | I72: 70 in-lb | J72: GLB161.1P | K72: GLB** | L72: 3.3 W | M72: 1 W | N72: 88 in-lb | O72: M9109-GGA-2 | P72: M91** | Q72: 1.92 W | R72: 0.3 W | S72: 80 in-lb
A73: NMB24-MFT | B73: 3.5 W | C73: 1.3 W | D73: 90 in-lb | E73: M9174 | F73: M91** | G73: 7.2 W | H73: 0 W | I73: 75 in-lb | J73: GLB163.1P | K73: GLB** | L73: 3.3 W | M73: 1 W | N73: 88 in-lb | O73: M9108-HGA-2 | P73: M91** | Q73: 1.92 W | R73: 0.3 W | S73: 80 in-lb
A74: NMCB24-3 | B74: 2 W | C74: 0.2 W | D74: 90 in-lb | E74: -- | F74: -- | G74: -- | H74: -- | I74: -- | J74: -- | K74: -- | L74: -- | M74: -- | N74: -- | O74: -- | P74: -- | Q74: -- | R74: -- | S74: --
A75: NMCX24-MFT | B75: 3.5 W | C75: 1.25 W | D75: 90 in-lb | E75: -- | F75: -- | G75: -- | H75: -- | I75: -- | J75: -- | K75: -- | L75: -- | M75: -- | N75: -- | O75: -- | P75: -- | Q75: -- | R75: -- | S75: --
A76: NMQB24-1 | B76: 13 W | C76: 1.5 W | D76: 70 in-lb | E76: -- | F76: -- | G76: -- | H76: -- | I76: -- | J76: -- | K76: -- | L76: -- | M76: -- | N76: -- | O76: -- | P76: -- | Q76: -- | R76: -- | S76: --
A77: NMQB24-MFT | B77: 13 W | C77: 1.5 W | D77: 70 in-lb | E77: -- | F77: -- | G77: -- | H77: -- | I77: -- | J77: -- | K77: -- | L77: -- | M77: -- | N77: -- | O77: -- | P77: -- | Q77: -- | R77: -- | S77: --
A78: NMX120-3 | B78: 3.5 W | C78: 0.6 W | D78: 90 in-lb | E78: -- | F78: -- | G78: -- | H78: -- | I78: -- | J78: -- | K78: -- | L78: -- | M78: -- | N78: -- | O78: -- | P78: -- | Q78: -- | R78: -- | S78: --
A79: TFB120 | B79: 2.5 W | C79: 1.3 W | D79: 22 in-lb | E79: MS4103A | F79: MS4** | G79: 8 W | H79: 2 W | I79: 27 in-lb | J79: GQD221.1U | K79: GQD** | L79: 10 W | M79: 7 W | N79: 20 in-lb | O79: M9203-BUA-2 | P79: M92** | Q79: 4.32 W | R79: 1.44 W | S79: 27 in-lb
A80: TFB24 | B80: 2 W | C80: 1.3 W | D80: 22 in-lb | E80: MS8103A | F80: MS8** | G80: 5.4 W | H80: 2 W | I80: 27 in-lb | J80: GQD121.1P | K80: GQD** | L80: 6.5 W | M80: 4 W | N80: 20 in-lb | O80: M9203-BGA-2 | P80: M92** | Q80: 3 W | R80: 1.5 W | S80: 27 in-lb
A81: TFB24-3 | B81: 2.5 W | C81: 1 W | D81: 22 in-lb | E81: MS7503A | F81: MS7** | G81: 5.4 W | H81: 2 W | I81: 27 in-lb | J81: GQD131.1P | K81: GQD** | L81: 4 W | M81: 3 W | N81: 20 in-lb | O81: M9203-AGA-2 | P81: M92** | Q81: 2.82 W | R81: 1.62 W | S81: 27 in-lb
A82: TFB24-SR | B82: 2 W | C82: 1 W | D82: 22 in-lb | E82: MS7503A | F82: MS7** | G82: 5.4 W | H82: 2 W | I82: 27 in-lb | J82: GQD151.1P | K82: GQD** | L82: 4.5 W | M82: 3.5 W | N82: 20 in-lb | O82: M9203-GGA-2 | P82: M92** | Q82: 2.82 W | R82: 1.62 W | S82: 27 in-lb
A83: TFB24-MFT | B83: 2.5 W | C83: 1 W | D83: 22 in-lb | E83: MS7503A | F83: MS7** | G83: 5.4 W | H83: 2 W | I83: 27 in-lb | J83: GQD151.1P | K83: GQD** | L83: 4.5 W | M83: 3.5 W | N83: 20 in-lb | O83: M9203-GGA-2 | P83: M92** | Q83: 2.82 W | R83: 1.62 W | S83: 27 in-lb
A84: FSAF120 US | B84: 9.5 W | C84: 3.5 W | D84: 133 in-lb | E84: MS4120F... | F84: MS4** | G84: 35 W | H84: 10 W | I84: 180 in-lb | J84: GGD221 series | K84: GGD* | L84: 150 W | M84: 10 W | N84: 142 in-lb | O84: -- | P84: -- | Q84: -- | R84: -- | S84: --
A85: FSAF230 US | B85: 11 W | C85: 3.5 W | D85: 133 in-lb | E85: MS4620F… | F85: MS4** | G85: 35 W | H85: 10 W | I85: 180 in-lb | J85: GGD321 series | K85: GGD* | L85: 150 W | M85: 10 W | N85: 142 in-lb | O85: -- | P85: -- | Q85: -- | R85: -- | S85: --
A86: FSAF24 US | B86: 7.5 W | C86: 2 W | D86: 133 in-lb | E86: MS8120F… | F86: MS8** | G86: 45 W | H86: 10 W | I86: 180 in-lb | J86: GGD221 series | K86: GGD* | L86: 150 W | M86: 10 W | N86: 142 in-lb | O86: -- | P86: -- | Q86: -- | R86: -- | S86: --
A87: FSAF24-BAL US | B87: 6.5 W | C87: 3 W | D87: 133 in-lb | E87: -- | F87: -- | G87: -- | H87: -- | I87: -- | J87: -- | K87: -- | L87: -- | M87: -- | N87: -- | O87: -- | P87: -- | Q87: -- | R87: -- | S87: --
A88: FSLF120 US | B88: 14 W | C88: 4.5 W | D88: 30 in-lb | E88: MS4104F… | F88: MS4** | G88: 18 W | H88: 9 W | I88: 30 in-lb | J88: GND221 series | K88: GND** | L88: 20 W | M88: 9 W | N88: 53 in-lb | O88: -- | P88: -- | Q88: -- | R88: -- | S88: --
A89: FSLF230 US | B89: 14W | C89: 4 W | D89: 30 in-lb | E89: MS4604F… | F89: MS4** | G89: 18 W | H89: 9 W | I89: 30 in-lb | J89: GND321 series | K89: GND** | L89: 20 W | M89: 9 W | N89: 53 in-lb | O89: -- | P89: -- | Q89: -- | R89: -- | S89: --
A90: FSLF24 US | B90: 14 W | C90: 2.5 W | D90: 30 in-lb | E90: MS8104F… | F90: MS8** | G90: 9.6 W | H90: 4.8 W | I90: 30 in-lb | J90: GND121 series | K90: GND** | L90: 12 W | M90: 6 W | N90: 53 in-lb | O90: -- | P90: -- | Q90: -- | R90: -- | S90: --
A91: FSNF120 US | B91: 19 W | C91: 6 W | D91: 70 in-lb | E91: MS4109F… | F91: MS4** | G91: 233 W | H91: 7 W | I91: 80 in-lb | J91: GGD221 series | K91: GGD* | L91: 150 W | M91: 10 W | N91: 142 in-lb | O91: -- | P91: -- | Q91: -- | R91: -- | S91: --
A92: FSNF230 US | B92: 20 W | C92: 6 W | D92: 70 in-lb | E92: MS4609F… | F92: MS4** | G92: 23 W | H92: 7 W | I92: 80 in-lb | J92: GGD321 series | K92: GGD* | L92: 150 W | M92: 10 W | N92: 142 in-lb | O92: -- | P92: -- | Q92: -- | R92: -- | S92: --
A93: FSNF24 US | B93: 17 W | C93: 4 W | D93: 70 in-lb | E93: MS8109F… | F93: MS8** | G93: 13.8 W | H93: 4.2 W | I93: 80 in-lb | J93: GGD221 series | K93: GGD* | L93: 150 W | M93: 10 W | N93: 142 in-lb | O93: -- | P93: -- | Q93: -- | R93: -- | S93: --
A94: FSTF120 US | B94: 2 W | C94: 1.5 W | D94: 18 in-lb | E94: MS4104F… | F94: MS4** | G94: 18 W | H94: 9 W | I94: 30 in-lb | J94: GND221 series | K94: GND** | L94: 20 W | M94: 9 W | N94: 53 in-lb | O94: -- | P94: -- | Q94: -- | R94: -- | S94: --

Sheet InfoText (hidden)
A1: Sheet | B1: Cell Address | C1: Information Displayed
A2: Home | B2: $H$36 | C2: Formula = J18*J22+J19*J23/100*J20*J21*52/1000
A3: Home | B3: $J$36 | C3: Formula=H37*J27
A4: Home | B4: $L$36 | C4: Formula=H37*J24
A5: Home | B5: $N$36 | C5: Formula=J37*J24
A6: Home | B6: $F$42 | C6: Formula=L38-L37
A7: Home | B7: $L$42 | C7: Formula=N38-N37
A8: Home | B8: $H$25 | C8: Visit the Energy Tab to create your own "Custom Location" by entering the data found at http://www.eia.gov/electricity
A9: Home | B9: $F$53 | C9: The life-cycle savings of an energy improvement divided by the initial investment. (For every dollar invested in an energy improvement, how many dollars will be saved over the life of the improvement in today’s dollars) =+Financials!G45
A10: Home | B10: $F$54 | C10: Net present value is the present value of net cash inflows generated by a project including salvage value, if any, less the initial investment on the project. It is one of the most reliable measures used in capital budgeting because it accounts for time value of money by using discounted cash inflows. Before calculating NPV, a target rate of return is set which is used to discount the net cash inflows from a project. Net cash inflow equals total cash inflow during a period less the expenses directly incurred on generating the cash inflow. Formula =+Financials!$G$40
A11: Home | B11: $H$27 | C11: check: http://www.eia.gov/electricity
A12: Home | B12: $J$48 | C12: Enter the incremental costs for Belimo actuators over competetive actuators. If there are actuators installed in the plant that will be replaced by Belimo Actuators, the whole replacement costs have to be considered.
A13: Home | B13: $J$49 | C13: This depends on the finance instrument of the investment. If the project is financed by a mortgage with an interest rate of 4%, then enter 4. Alternatively, it could be financed by a bank loan or simply by cash that's on an organizations balance sheet. Some companies are using a so called internal Hurdle Rate.
A14: Home | B14: $J$50 | C14: This is the inflation rate that is predicted for the cost of electricity. Some forecasts predict this to between 3 and 4% annually, over the next decade.
A15: Home | B15: $J$57 | C15: calculation according to EPA www.epa.gov
A16: Home | B16: $J$58 | C16: calculation according to EPA www.epa.gov
A17: Home | B17: $J$59 | C17: based on annual consumption of 12,258 kWh per home according to EPA www.epa.gov
A18: Energy | B18: $D$61 | C18: check: http://www.eia.gov/electricity
A19: Financials | B19: $B$12 | C19: This is the inflation rate that is predicted for the cost of electricity. Some forecasts predict this to between 3 and 4% annually, over the next decade. Formula =Home!L50/100
A20: Financials | B20: $B$18 | C20: Formula =Home!L48*-1
A21: Financials | B21: $B$9 | C21: This depends on the finance instrument of the investment. If the project is financed by a mortgage with an interest rate of 4%, then enter 4. Alternatively, it could be financed by a bank loan or simply by cash that's on an organizations balance sheet. Some companies are using a so called internal Hurdle Rate. Formula =Home!L49/100
A22: Financials | B22: $C$26 | C22: Formula =Home!H43

Sheet Formula Reference (hidden)
B2: COST COMPARISON
B4: 2 | C4: …POWER DRAW (W) RUNNING FSTF120 US
B5: 1.5 | C5: …POWER DRAW (W) HOLDING FSTF120 US
B6: 18 | C6: …POWER DRAW (W) RUNNING MS4104 Series
B7: 9 | C7: … POWER DRAW (W) HOLDING MS4104 Series
B8: 24 | C8: …AVERAGE HRS OF OPERATION PER DAY
B9: 7 | C9: …AVG. DAYS OF OPERATION PER WEEK
B10: =B9*B8 -> 168 | C10: ...HOURS/WK OF OCCUPANCY/OPERATION (HRSOCC)
B11: 0.995 | C11: …PERCENTAGE OF TIME HOLDING
B12: 0.005 | C12: …PERCENTAGE OF TIME RUNNING | I12: Soure (7/15/14):
B13: 0.104 | C13: ...ELECTRICITY UNIT ($) COST/KWHR (NAT'L AVE. COMMERCIAL) | I13: http://www.eia.gov/electricity/monthly/epm_table_grapher.cfm?t=epmt_5_6_a
B14: 52 | C14: ...WEEKS/YEAR OF BUILDING OPERATION (WPY)
B16: FSTF120 US COST OF OPERATION | H16: RUNNING | I16: HOLDING
B17: FSTF120 US KW - DEMAND============================================= | H17: =B4/1000 -> 0.002 | I17: =B5/1000 -> 0.0015 | J17: KW
B18: KW USED * ELECCOST ============================================= | H18: =H17*B13 -> 0.000208 | I18: =I17*B13 -> 0.000156 | J18: KW COST
B19: FSTF120 US KWH USAGE - CONSUMPTION============================================= | H19: =((H17)*B10*B14) -> 17.472 | I19: =(I17)*B10*B14 -> 13.104 | J19: KWH
B20: KWH USED * ELECCOST ============================================= | H20: =H19*B13*B12 -> 0.00908544 | I20: =I19*B13*B11 -> 1.35600192 | J20: KWH COST
B21: TOTAL COST =============================================== | H21: =H20+H18 -> 0.00929344 | I21: =I20+I218 -> 1.35600192 | K21: =SUM(H21:I21) -> 1.36529536
B23: MS4104.. Cost Of Operation
B24: MS4104.. KW - DEMAND============================================= | H24: =B6/1000 -> 0.018 | I24: =(B7/1000) -> 0.009 | J24: KW
B25: KW USED * ELECCOST ============================================= | H25: =H24*B13 -> 0.001872 | I25: =I24*B13 -> 0.000936 | J25: KW COST
B26: MS4104.. USAGE - CONSUMPTION============================================= | H26: =H24*B10*B14 -> 157.248 | I26: =(I24)*B10*B14 -> 78.624 | J26: KWH
B27: KWH USED * ELECCOST ============================================= | H27: =H26*B13*B12 -> 0.08176896 | I27: =I26*B13*B11 -> 8.13601152 | J27: KWH COST
B28: TOTAL COST =============================================== | H28: =H27+H25 -> 0.08364096 | I28: =I27+I25 -> 8.13694752 | K28: =SUM(H28:I28) -> 8.22058848
B30: ENERGY SAVINGS PER ACTUATOR
B31: KWH CONSUMPTION SAVINGS ========================================= | H31: =H26-H19 -> 139.776 | I31: =I26-I19 -> 65.52 | J31: KWH
B32: KW DEMAND SAVINGS ====================================== | H32: =H24-H17 -> 0.016 | I32: =I24-I17 -> 0.0075 | J32: KW
B33: TOTAL COST SAVINGS ==================================== | H33: =H28-H21 -> 0.07434752 | I33: =I28-I21 -> 6.7809456 | K33: =SUM(H33:I33) -> 6.85529312
K34: =1-(K21/K28) -> 0.833917564
B35: TOTAL ENERGY SAVINGS
B36: SAVINGS PER ACTUATOR * 150 ACTUATORS ON JOBSITE ========= | H36: =H33*150 -> 11.152128 | I36: =I33*150 -> 1017.14184 | J36: YEARLY SAVINGS (ENERGY COST)
I38: =SUM(H36:I36) -> 1028.293968 | J38: TOTAL YEARLY SAVINGS (ENERGY COST)
